[Event "45th FIDE Olympiad 2024"]
[Site "Budapest"]
[Date "2024.09.11"]
[Round "1.29"]
[White "Saraci, Nderim"]
[Black "Sihlongonyane, Sikhanyiso"]
[Result "1-0"]
[ECO "D02"]
[WhiteElo "2446"]
[BlackElo "1813"]
[Annotator "TA"]
[PlyCount "65"]
[EventDate "2024.09.05"]
[EventType "team-tourn"]
[EventCountry "HUN"]
[SourceTitle "playchess.com"]
[Source "ChessBase"]
[SourceQuality "1"]
[WhiteTeam "Kosovo"]
[BlackTeam "Eswatini"]
[WhiteTeamCountry "KOS"]
[TimeControl "40/5400+30:1800+30"]

{[%evp 10,65,5,2,10,4,10,8,37,29,31,33,51,44,46,41,47,44,52,48,43,44,60,35,41,35,51,47,45,54,51,47,74,54,132,110,171,156,301,297,493,456,659,635,685,710,733,699,29978,29981,29979,29976,29996,-475,29997,29998,29998,29999]} 1. d4 Nf6 2. Nf3 d5 3. Bf4 e6 4. e3 Bd6 5. Nbd2 Bxf4 6. exf4 O-O 7. c3 Qd6 8. g3 c5 {The position is equal.} 9. dxc5 Qxc5 10. Bd3 b5 11. a3 Bb7 12. O-O Nc6 {[%cal Bb8c6,Bc6a5,Ba5c4][%mdl 32]} 13. Nb3 Qb6 14. Qe2 a6 15. Rfe1 Na5 16. Nbd4 Nc4 17. Ne5 Rfe8 18. h4 Rac8 19. f3 {Repels Ne4} Rc7 20. Qf2 Qc5 21. Re2 {White is more active.} g6 ({Black should play} 21... h5 $14) 22. Rae1 Rec8 (22... a5 $16 {was called for.}) 23. g4 $18 {[%cal Oh4h5] Strongly threatening h5!} a5 (23... Nxe5 $16 24. fxe5 Nd7) 24. h5 $1 b4 $2 (24... g5 25. Qg3 (25. fxg5 Ne4 $18) 25... Nxe5 26. fxe5 (26. Rxe5 b4 $18) 26... Nd7 27. Bxb5 Bc6) 25. hxg6 hxg6 (25... Nxe5 $142 26. fxe5 Nd7 27. gxf7+ (27. gxh7+ Kh8 $18) 27... Kxf7 28. cxb4 (28. Bxh7 Ba6 $18) 28... axb4) 26. axb4 axb4 27. Bxc4 dxc4 28. Qh4 {Rh2 would now be deadly.} Nd5 29. Rh2 {[%csl Gh2][%cal Rh4h8]} Kf8 {[#]} 30. Nd7+ $1 {[%mdl 512]} Rxd7 {[#]} (30... Ke8 31. Nxc5) 31. Qh8+ $1 Ke7 {[#]} 32. Rxe6+ $3 {[%mdl 512]} fxe6 33. Rh7+ {Weighted Error Value: White=0.05 (flawless) /Black=0.68.  Mistake:       	---       	Black=5      Inaccurate:     	---       	Black=2      OK:         	White=9     	Black=3      Strong:       	White=1     	---} 1-0

[Event "45th FIDE Olympiad 2024"]
[Site "Budapest"]
[Date "2024.09.11"]
[Round "1.29"]
[White "Rakotomaharo, Fy Antenaina"]
[Black "Kollars, Dmitrij"]
[Result "1/2-1/2"]
[ECO "C54"]
[WhiteElo "2440"]
[BlackElo "2659"]
[Annotator "TA"]
[PlyCount "157"]
[EventDate "2024.09.05"]
[EventType "team-tourn"]
[EventCountry "HUN"]
[SourceTitle "playchess.com"]
[Source "ChessBase"]
[SourceQuality "1"]
[WhiteTeam "Madagascar"]
[BlackTeam "Germany"]
[WhiteTeamCountry "MAD"]
[BlackTeamCountry "GER"]
[TimeControl "40/5400+30:1800+30"]

{[%evp 64,157,-21,-34,-18,-18,-15,-45,-42,-37,-22,-14,-8,-16,-1,-1,-1,-1,-1,-8,-8,-16,-16,-16,-16,-16,0,-8,0,0,0,0,0,-8,-8,-8,-8,-8,-8,-8,-8,-8,-8,-19,-22,-34,-8,-8,-8,-8,-8,-8,0,-8,-8,-8,0,-8,0,-8,-8,-8,-8,-8,-8,-8,-8,-8,-8,-8,0,0,0,0,0,0,0,0,0,-7,-7,-7,-7,-7,0,0,0,-8,0,0,0,0,0,0,0,-8]} 1. e4 {[%emt 0:06:18]} e5 {[%emt 0:00:19]} 2. Nf3 {[%emt 0:00:21]} Nc6 {[%emt 0:00:06]} 3. Bc4 {[%emt 0:00:26]} Bc5 {[%emt 0:00:35]} 4. d3 {[%emt 0:00:57]} Nf6 {[%emt 0:00:16]} 5. O-O {[%emt 0:00:28]} d6 {[%emt 0:00:33]} 6. c3 {[%emt 0:00:29]} a6 {[%emt 0:01:35]} 7. a4 {[%emt 0:00:18]} O-O {[%emt 0:00:32]} 8. h3 {[%emt 0:00:31]} Ba7 {[%emt 0:00:22]} 9. Re1 {[%emt 0:00:30]} Be6 {[%emt 0:01:05]} 10. Nbd2 {[%emt 0:04:38]} Nh5 {[%emt 0:06:24]} 11. d4 {[%emt 0:07:26]} exd4 {[%emt 0:03:18]} 12. Nxd4 {[%emt 0:01:18]} Nf4 {[%emt 0:02:36]} 13. Nxe6 {[%emt 0:21:40]} fxe6 {[%emt 0:00:35]} 14. Nf3 {[%emt 0:00:07]} Kh8 {[%emt 0:06:06]} 15. Be3 {[%emt 0:02:33]} Qf6 {[%emt 0:10:44]} 16. Kh2 {[%emt 0:13:11]} Bxe3 {[%emt 0:22:42]} 17. Rxe3 {[%emt 0:01:20]} Rf7 {[%emt 0:02:58]} 18. Bf1 {[%emt 0:10:10]} Raf8 {[%emt 0:03:37]} 19. b4 {[%emt 0:02:13]} g5 {[%emt 0:03:11]} 20. b5 {[%emt 0:01:19]} axb5 {[%emt 0:01:23]} 21. axb5 {[%emt 0:00:05]} Ne5 {[%emt 0:00:17]} 22. Nxe5 {[%emt 0:01:52]} Qxe5 {[%emt 0:00:33]} 23. Kg1 {[%emt 0:00:18]} Ng6 {[%emt 0:04:24]} 24. Ra2 {[%emt 0:00:49]} b6 {[%emt 0:00:10]} 25. Qd4 {[%emt 0:06:46]} Qg7 {[%emt 0:00:50]} 26. Qxg7+ {[%emt 0:09:45]} Kxg7 {[%emt 0:00:06]} 27. Re1 {[%emt 0:00:04]} Ne5 {[%emt 0:01:09]} 28. f3 {[%emt 0:02:28]} h5 {[%emt 0:01:41]} 29. Ra7 {[%emt 0:00:27]} g4 {[%emt 0:09:53]} 30. fxg4 {[%emt 0:00:26]} hxg4 {[%emt 0:00:05]} 31. hxg4 {[%emt 0:00:08]} Nxg4 {[%emt 0:00:15]} 32. Bc4 {[%emt 0:00:31]} Re7 {[%emt 0:02:48]} 33. Be2 {[%emt 0:03:18]} Ne5 {[%emt 0:00:23]} 34. Rd1 {[%emt 0:00:33]} Ref7 {[%emt 0:02:08]} 35. Bh5 {[%emt 0:01:49]} Rd7 {[%emt 0:00:06]} 36. Rf1 {[%emt 0:01:14]} Rxf1+ {[%emt 0:02:02]} 37. Kxf1 {[%emt 0:00:03]} Kf6 {[%emt 0:00:03]} 38. Kf2 {[%emt 0:00:48]} Rg7 {[%emt 0:02:53]} 39. Be2 {[%emt 0:00:57]} Ng6 {[%emt 0:01:01]} 40. Ke3 {[%emt 0:01:21]} Ke5 {[%emt 0:03:32]} 41. Bf3 {[%emt 0:05:30]} Nf4 {[%emt 0:17:52]} 42. c4 {[%emt 0:01:14]} Ng6 {[%emt 0:01:21]} 43. Ra8 {[%emt 0:01:06]} Kf6 {[%emt 0:03:40]} 44. Rc8 {[%emt 0:00:58]} Ke5 {[%emt 0:04:42]} 45. Re8 {[%emt 0:04:16]} Nh4 {[%emt 0:01:25]} 46. Rc8 {[%emt 0:00:11]} Kf6 {[%emt 0:00:48]} 47. Kd4 {[%emt 0:02:15]} Ng6 {[%emt 0:00:21]} (47... Nxg2 48. Bxg2 Rxg2 49. Rxc7 $11) 48. Ke3 {[%emt 0:01:39]} Rh7 {[%emt 0:01:11]} 49. Kd4 {[%emt 0:02:10]} Re7 {[%emt 0:00:35]} 50. Bh5 {[%emt 0:02:35]} Ne5 {[%emt 0:00:21]} 51. Rf8+ {[%emt 0:01:42]} Kg5 {[%emt 0:01:00]} 52. Be2 {[%emt 0:00:26]} Rg7 {[%emt 0:00:46]} 53. Re8 {[%emt 0:02:05]} Kf6 {[%emt 0:00:12]} 54. Bf3 $1 {[%emt 0:00:03]} Re7 {[%emt 0:04:04]} 55. Rf8+ {[%emt 0:02:27]} Rf7 {[%emt 0:00:07]} 56. Rc8 {[%emt 0:00:07]} Rh7 {[%emt 0:00:17]} 57. Be2 {[%emt 0:00:33]} Ng6 {[%emt 0:00:26]} 58. Bf3 {[%emt 0:00:33]} Nf4 {[%emt 0:00:26]} 59. Ke3 {[%emt 0:00:45]} Ng6 {[%emt 0:00:19]} 60. Kd4 {[%emt 0:00:21]} Re7 {[%emt 0:00:31]} 61. Bh5 {[%emt 0:00:42]} Nf4 {[%emt 0:00:22]} 62. Bf3 {[%emt 0:00:44]} Rg7 {[%emt 0:00:17]} 63. Ke3 {[%emt 0:05:48]} ({Don't play} 63. Rf8+ Ke7 64. Rh8 (64. Rxf4 $2 {is the wrong capture.} e5+ 65. Kd5 exf4 $19) 64... e5+ (64... Nxg2 65. Bxg2 Rxg2 66. Rh7+ Kd8 67. Rh8+ Kd7 68. Rh7+ Kc8 69. Rh8+ Kb7 70. Kd3 $15) 65. Ke3 Ne6 $15 (65... Nxg2+ 66. Bxg2 Rxg2 67. Rh7+ Kd8 68. Kd3 $15)) 63... Ke5 {[%emt 0:00:37]} 64. Rf8 {[%emt 0:00:03]} Nxg2+ {[%emt 0:01:05]} 65. Bxg2 {[%emt 0:00:03]} Rxg2 {[%emt 0:00:03]} 66. Rf7 $1 {[%emt 0:00:04]} Rg4 {[%emt 0:01:02]} 67. Rxc7 {[%emt 0:00:49]} Rxe4+ {[%emt 0:00:01]} 68. Kf3 {[%emt 0:02:58]} d5 {[%emt 0:01:10]} (68... Kd4 $5 69. Rc6 $8 d5 70. cxd5 Re3+ (70... Kxd5 71. Rxb6 Kc5 72. Ra6 $11) 71. Kf4 exd5 $11) 69. cxd5 $1 {[%emt 0:00:22]} exd5 {[%emt 0:00:06]} 70. Rc6 {[%emt 0:00:06]} Rf4+ {[%emt 0:00:04]} 71. Ke3 {[%emt 0:00:26]} Rf6 {[%emt 0:00:13]} 72. Rc8 {[%emt 0:00:27]} d4+ {[%emt 0:01:11]} 73. Kd3 {[%emt 0:01:19]} Rf3+ {[%emt 0:01:24]} 74. Kc2 {[%emt 0:00:07]} Rf6 {[%emt 0:03:32]} 75. Kd3 {[%emt 0:00:15]} Rf3+ {[%emt 0:00:23]} 76. Kc2 {[%emt 0:00:04]} Rf2+ {[%emt 0:01:23]} 77. Kb3 {[%emt 0:02:30]} Rf3+ {[%emt 0:01:31]} 78. Kc2 {[%emt 0:00:17]} Rf6 {[%emt 0:00:12]} 79. Kd3 {[%emt 0:01:29]} 1/2-1/2

[Event "45th FIDE Olympiad 2024"]
[Site "Budapest"]
[Date "2024.09.11"]
[Round "1.30"]
[White "Bluebaum, Matthias"]
[Black "Andrianiaina, Heritiana"]
[Result "1-0"]
[ECO "D46"]
[WhiteElo "2640"]
[BlackElo "2149"]
[Annotator "TA"]
[PlyCount "59"]
[EventDate "2024.09.05"]
[EventType "team-tourn"]
[EventCountry "HUN"]
[SourceTitle "playchess.com"]
[Source "ChessBase"]
[SourceQuality "1"]
[WhiteTeam "Germany"]
[BlackTeam "Madagascar"]
[WhiteTeamCountry "GER"]
[BlackTeamCountry "MAD"]
[TimeControl "40/5400+30:1800+30"]

{[%evp 20,59,19,19,29,0,0,6,25,14,139,150,144,147,189,139,151,80,187,183,241,246,238,216,276,205,216,216,210,189,281,268,301,291,325,316,321,300,320,314,497,468]} 1. Nf3 {[%emt 0:00:04]} d5 {[%emt 0:07:06]} 2. e3 {[%emt 0:00:19]} Nf6 {[%emt 0:03:13]} 3. c4 {[%emt 0:00:24]} e6 {[%emt 0:02:29]} 4. Nc3 {[%emt 0:00:18]} Be7 {[%emt 0:06:33]} 5. b3 {[%emt 0:00:22]} c6 {[%emt 0:03:47]} 6. Bb2 {[%emt 0:00:29]} Nbd7 {[%emt 0:01:40]} 7. d4 {[%emt 0:03:47]} O-O {[%emt 0:02:34]} 8. Bd3 {[%emt 0:00:07]} b6 {[%emt 0:05:29]} 9. O-O {[%emt 0:01:30]} Bb7 {[%emt 0:00:31]} 10. Qe2 {[%emt 0:03:29]} Rc8 {[%emt 0:10:20]} 11. Rad1 {[%emt 0:09:21]} Qc7 {[%emt 0:05:15]} 12. Ne5 {[%emt 0:04:37]} Nxe5 {[%emt 0:08:57]} 13. dxe5 {[%emt 0:00:05]} Nd7 {[%emt 0:00:10] The position is equal.} (13... Qxe5 $2 14. Nxd5 $18) 14. f4 {[%emt 0:01:49] Black should prevent cxd5.} f5 {[%emt 0:03:06]} (14... g6 $11) 15. cxd5 $16 {[%emt 0:05:03]} cxd5 {[%emt 0:13:03]} 16. Nb5 $1 {[%emt 0:00:24][%csl LRa7,LRc7]} Qb8 {[%emt 0:00:11]} 17. Nd4 {[%emt 0:01:20]} Nc5 {[%emt 0:00:15] [#]} 18. Ba3 {[%emt 0:05:21] White is more active.} ({White should play} 18. g4 $1 {[%cal Rg4f5]}) 18... Rce8 {[%emt 0:06:01]} (18... Rf7 $16) 19. Bb5 $18 {[%emt 0:02:33]} Nxb3 {[%emt 0:04:45]} (19... a5 {might work better.} 20. Bxc5 Bxc5 21. Bxe8 Rxe8) 20. Nxe6 {[%emt 0:05:16]} ({Don't play} 20. Nxb3 $6 Bxa3 21. Bxe8 Qxe8 $16) (20. Bxe8 Rxe8 21. axb3 (21. Nxe6 Bxa3 22. Nxg7 Kxg7 $15) 21... Bxa3 $16) 20... Bxa3 {[%emt 0:01:12]} 21. Nxf8 {[%emt 0:00:05]} ({Inferior is} 21. Bxe8 Rxe8 22. Nxg7 Kxg7 $15) 21... Rxf8 {[%emt 0:00:34]} 22. Qd3 {[%emt 0:02:44]} Bc5 {[%emt 0:01:27]} 23. Qxb3 {[%emt 0:00:06]} Kh8 {[%emt 0:01:00]} 24. Be2 {[%emt 0:03:23][%cal Bb5e2,Be2f3,Bf3d5][%mdl 32]} Rd8 {[%emt 0:01:08]} (24... a5 $142 25. Kh1 Qe8) 25. Kh1 {[%emt 0:02:10]} Qc8 {[%emt 0:02:55]} 26. Rd2 {[%emt 0:02:22]} a5 {[%emt 0:01:15][%cal Ba7a5,Ba5a4][%mdl 32]} 27. Rfd1 {[%emt 0:02:18]} a4 {[%emt 0:01:05]} 28. Qc3 {[%emt 0:01:24]} ({Less strong is} 28. Qxa4 Bxe3 29. Rc2 Bc5 $18) 28... Qe6 {[%emt 0:01:06]} 29. Bf3 {[%emt 0:00:17]} Qe7 {[%emt 0:00:19]} (29... Bc6 $142 30. Rd3 Kg8) 30. Bxd5 {[%emt 0:01:59] Weighted Error Value: White=0.13 (very precise) /Black=0.48.  Mistake:       	White=1     	Black=5      OK:         	White=11    	Black=7      Best:        	White=2     	---} 1-0

[Event "45th FIDE Olympiad 2024"]
[Site "Budapest"]
[Date "2024.09.11"]
[Round "1.30"]
[White "Dlamini, Simphiwe"]
[Black "Ondozi, Murtez"]
[Result "0-1"]
[ECO "D02"]
[WhiteElo "1747"]
[BlackElo "2371"]
[Annotator "ChessBase"]
[PlyCount "124"]
[EventDate "2024.09.05"]
[EventType "team-tourn"]
[EventCountry "HUN"]
[SourceTitle "playchess.com"]
[Source "ChessBase"]
[SourceQuality "1"]
[WhiteTeam "Eswatini"]
[BlackTeam "Kosovo"]
[BlackTeamCountry "KOS"]
[TimeControl "40/5400+30:1800+30"]

1. d4 d5 2. Bf4 c6 3. Nf3 Bf5 4. e3 Qb6 5. Qc1 Nf6 6. Nbd2 e6 7. c3 Nh5 8. Bg3 h6 9. Be2 Nxg3 10. hxg3 Nd7 11. Bd1 Rc8 12. Bc2 Bxc2 13. Qxc2 c5 14. Qb3 Qa6 15. a4 cxd4 16. exd4 Rc7 17. Qb5 Qd6 18. Ne5 a6 19. Qe2 Nxe5 20. Qxe5 Qxe5+ 21. dxe5 g6 22. Nf3 Bg7 23. a5 Ke7 24. Rh4 g5 25. Rb4 Rb8 26. Ra3 Kd7 27. Rab3 Kc8 28. Kd2 Bf8 29. Ra4 Rc4 30. Ra1 Bg7 31. Kd3 Re4 32. Rb4 Rxb4 33. cxb4 Kd7 34. g4 Rc8 35. b3 f6 36. exf6 Bxf6 37. Rh1 Bg7 38. Nd4 Rf8 39. f3 Rf4 40. Nc2 Kd6 41. Ke3 Rf8 42. Nd4 Rc8 43. Kd3 Kd7 44. Ne2 e5 45. Rc1 Rxc1 46. Nxc1 Kc6 47. Ne2 Kb5 48. Nc3+ Kxb4 49. Nxd5+ Kxb3 50. Nc7 Kb4 51. Ne6 Bf6 52. Ke4 Kxa5 53. Kf5 Be7 54. Kxe5 Kb4 55. f4 gxf4 56. Nxf4 Bg5 57. Nd3+ Kc4 58. Nf2 a5 59. Ne4 Be7 60. Ke6 Bb4 61. g5 hxg5 62. Nxg5 a4 0-1

[Event "45th FIDE Olympiad 2024"]
[Site "Budapest"]
[Date "2024.09.11"]
[Round "1.31"]
[White "Uruci, Endrit"]
[Black "Mbongeni, Mabuza"]
[Result "1-0"]
[ECO "C50"]
[WhiteElo "2348"]
[BlackElo "1784"]
[Annotator "ChessBase"]
[PlyCount "117"]
[EventDate "2024.09.05"]
[EventType "team-tourn"]
[EventCountry "HUN"]
[SourceTitle "playchess.com"]
[Source "ChessBase"]
[SourceQuality "1"]
[WhiteTeam "Kosovo"]
[BlackTeam "Eswatini"]
[WhiteTeamCountry "KOS"]
[TimeControl "40/5400+30:1800+30"]

1. e4 e5 2. Nf3 Nc6 3. d4 d6 4. Nc3 Be7 5. Be3 Nf6 6. h3 a6 7. Bc4 O-O 8. a4 exd4 9. Nxd4 Nxd4 10. Qxd4 Be6 11. O-O Nd7 12. f4 Bf6 13. Qd3 Re8 14. Bxe6 Rxe6 15. Bd4 Bxd4+ 16. Qxd4 c5 17. Qd3 Nf6 18. Rad1 Qe7 19. Rfe1 Re8 20. f5 Re5 21. Qxd6 Qxd6 22. Rxd6 Rxf5 23. Rb6 Re7 24. Rd1 Rfe5 25. Rd8+ Re8 26. Rxe8+ Rxe8 27. Rxb7 Kf8 28. Rb6 Nxe4 29. Nxe4 Rxe4 30. Rxa6 Rb4 31. Rc6 c4 32. a5 Rxb2 33. Rxc4 Ra2 34. Rc5 Ke7 35. Kh2 Kd6 36. Rh5 h6 37. Rb5 Rxc2 38. Rb7 Ke6 39. Rb6+ Ke7 40. a6 Ra2 41. Kg3 Ra4 42. Kf3 h5 43. Ke3 g5 44. Rh6 f6 45. Rh7+ Ke6 46. a7 h4 47. Kd3 Kf5 48. Rc7 Ra6 49. Kc4 Kf4 50. Kb5 Ra1 51. Rc4+ Kg3 52. Ra4 Rxa4 53. Kxa4 Kxg2 54. a8=Q+ Kxh3 55. Qf3+ Kh2 56. Qxf6 h3 57. Qf2+ Kh1 58. Qg3 h2 59. Qf2 1-0

[Event "45th FIDE Olympiad 2024"]
[Site "Budapest"]
[Date "2024.09.11"]
[Round "1.31"]
[White "Andriamasoandro, Miora"]
[Black "Donchenko, Alexander"]
[Result "0-1"]
[ECO "E04"]
[WhiteElo "2116"]
[BlackElo "2638"]
[Annotator "TA"]
[PlyCount "68"]
[EventDate "2024.09.05"]
[EventType "team-tourn"]
[EventCountry "HUN"]
[SourceTitle "playchess.com"]
[Source "ChessBase"]
[SourceQuality "1"]
[WhiteTeam "Madagascar"]
[BlackTeam "Germany"]
[WhiteTeamCountry "MAD"]
[BlackTeamCountry "GER"]
[TimeControl "40/5400+30:1800+30"]

{[%evp 13,68,37,21,-8,-4,-10,-9,-57,-43,-82,-70,-74,-65,-73,-73,-74,-69,-137,-136,-200,-155,-193,-200,-238,-231,-531,-510,-641,-638,-827,-849,-787,-620,-770,-776,-844,-820,-883,-867,-922,-909,-848,-828,-831,-822,-952,-869,-947,-925,-938,-896,-1005,-1022,-960,-852,-1228,-1207]} 1. d4 {[%emt 0:06:11]} Nf6 {[%emt 0:00:17]} 2. c4 {[%emt 0:00:25]} e6 {[%emt 0:00:16]} 3. Nf3 {[%emt 0:00:14]} d5 {[%emt 0:00:47]} 4. g3 {[%emt 0:00:08]} dxc4 {[%emt 0:00:50]} 5. Bg2 {[%emt 0:00:15]} a6 {[%emt 0:00:56]} 6. O-O {[%emt 0:02:29]} Nc6 {[%emt 0:00:26]} 7. e3 {[%emt 0:02:37]} Bd7 {[%emt 0:04:25]} 8. Ne5 {[%emt 0:10:42]} Nxe5 {[%emt 0:02:20]} 9. dxe5 {[%emt 0:00:08]} Nd5 {[%emt 0:00:10]} 10. a3 {[%emt 0:05:33]} (10. Qe2 $11) 10... b5 {[%emt 0:15:42]} 11. Nd2 {[%emt 0:04:10]} Be7 {[%emt 0:08:13]} 12. Ne4 {[%emt 0:05:14]} Bc6 {[%emt 0:08:55]} 13. Qg4 {[%emt 0:02:06]} O-O {[%emt 0:06:47]} 14. Rd1 {[%emt 0:01:40][%cal Ob2b3]} Qc8 {[%emt 0:01:35]} 15. Rd4 {[%emt 0:07:46]} (15. Bd2 $15) 15... Bb7 $17 {[%emt 0:03:06]} 16. Qh5 {[%emt 0:04:10]} (16. h4 $17) 16... f6 {[%emt 0:05:06]} 17. exf6 {[%emt 0:28:58]} Nxf6 {[%emt 0:00:27]} 18. Qe5 {[%emt 0:04:34]} c5 {[%emt 0:11:16]} 19. Bh3 $2 {[%emt 0:02:52] [#]} (19. Rd1) 19... Kh8 $19 {[%emt 0:01:06] Black is clearly winning.} ({Less strong is} 19... cxd4 20. Bxe6+ Rf7 21. Bxc8 (21. Ng5 $2 Qc6 $19) 21... Rxc8 22. Nxf6+ Bxf6 23. Qe6 $17) (19... Bd5 $2 20. Rxd5 Kh8 21. Nxf6 (21. Nxc5 Nxd5 22. Nxe6 Nf6 $16) (21. Bxe6 Qe8 $18) 21... Rxf6 22. Rd2 $18) 20. Bxe6 {[%emt 0:01:46]} Qc6 {[%emt 0:00:22]} 21. Rd2 {[%emt 0:05:12]} Qxe4 {[%emt 0:00:28]} 22. Qxe4 {[%emt 0:00:11]} Bxe4 {[%emt 0:00:07]} 23. Rd1 {[%emt 0:01:18]} Rad8 {[%emt 0:00:09]} 24. Re1 {[%emt 0:00:06]} Bf3 {[%emt 0:00:22]} 25. e4 {[%emt 0:00:21]} Nxe4 {[%emt 0:00:18]} 26. Be3 {[%emt 0:00:12]} Ng5 {[%emt 0:00:26]} 27. Bf4 {[%emt 0:01:39]} Nxe6 {[%emt 0:00:11]} 28. Rxe6 {[%emt 0:00:06]} Bf6 {[%emt 0:00:04]} 29. Rb1 {[%emt 0:00:29]} a5 {[%emt 0:00:25][%cal Of6b2] ...Bxb2! would now be deadly.} 30. Re3 {[%emt 0:00:08]} Rd1+ {[%emt 0:00:15]} 31. Rxd1 {[%emt 0:00:09]} Bxd1 {[%emt 0:00:03] This pair of bishops is nice.} 32. Bd6 {[%emt 0:00:50]} Rc8 {[%emt 0:00:06]} 33. Re1 {[%emt 0:01:09]} Bh5 {[%emt 0:00:14]} 34. h3 {[%emt 0:00:21]} Bxb2 {[%emt 0:00:08] White got outplayed after the opening.   Weighted Error Value: White=0.78/Black=0.20 (precise) .  Mistake:       	White=4     	---        Inaccurate:     	White=1     	---        OK:         	White=2     	Black=6      Best:        	---       	Black=1} 0-1